fUSD/lending_fUSD_20240803
["ID","MTS","AMOUNT","RATE_DAILY","PERIOD"]
[334017721,1722681056035,-500.0,0.00018904,2]
[334017722,1722681056045,-303.20560942,0.00018904,2]
[334017723,1722681056055,-534.01,0.00018904,2]
[334017724,1722681056064,-500.0,0.00018904,2]
[334017725,1722681056074,-500.0,0.00018904,2]
[334017726,1722681056084,-500.0,0.00018904,2]
[334017727,1722681056094,-500.0,0.00018904,2]
[334017728,1722681056103,-500.0,0.00018904,2]
[334017729,1722681056112,-500.0,0.00018904,2]
[334017730,1722681056122,-797.16,0.00018904,2]
[334017731,1722681056131,-155.0,0.00018999,2]
[334017732,1722681056142,-24331.66585552,0.00019,2]
[334017733,1722681056151,-202.66,0.00019067,2]
[334017734,1722681056161,-153.39099464,0.00019078,2]
[334017735,1722681056171,-999.6,0.000191,2]
[334017736,1722681056180,-306.2,0.000191,2]
[334017737,1722681056189,-500.0,0.00019177,2]
[334017738,1722681056203,-500.0,0.00019177,2]
[334017739,1722681056212,-500.0,0.00019177,2]
[334017740,1722681056221,-621.04898779,0.00019177,2]
[334017741,1722681056230,-150.0,0.00019177,2]
[334017742,1722681056241,-500.0,0.00019177,2]
[334017743,1722681056250,-500.0,0.00019177,2]
[334017744,1722681056260,-500.0,0.00019177,2]
[334017745,1722681056269,-615.44,0.00019177,2]
[334017746,1722681056279,-500.0,0.00019177,2]
[334017747,1722681056289,-500.0,0.00019177,2]
[334017748,1722681056298,-500.0,0.00019177,2]
[334017749,1722681056307,-500.0,0.00019177,2]
[334017750,1722681056317,-500.0,0.00019177,2]
[334017751,1722681056326,-538.32,0.00019177,2]
[334017752,1722681056335,-500.0,0.00019177,2]
[334017753,1722681056345,-500.0,0.00019177,2]
[334017754,1722681056354,-696.8,0.00019177,2]
[334017755,1722681056363,-607.26,0.00019177,2]
[334017756,1722681056373,-727.23,0.00019177,2]
[334017757,1722681056382,-391.09678781,0.00019177,2]
[334017758,1722681056391,-1294.76,0.00019177,2]
[334017759,1722681056400,-500.0,0.00019177,2]
[334017760,1722681056409,-500.0,0.00019177,2]
[334017761,1722681056419,-500.0,0.00019177,2]
[334017762,1722681056428,-500.0,0.00019177,2]
[334017763,1722681056437,-500.0,0.00019177,2]
[334017764,1722681056447,-3092.21,0.00019177,2]
[334017765,1722681056456,-866.72,0.00019177,2]
[334017766,1722681056732,-500.0,0.00019177,2]
[334017767,1722681056744,-500.0,0.00019177,2]
[334017768,1722681056754,-500.0,0.00019177,2]
[334017769,1722681056763,-500.0,0.00019177,2]
[334017770,1722681056773,-1243.11,0.00019177,2]
[334017771,1722681056782,-500.0,0.00019177,2]
[334017772,1722681056792,-500.0,0.00019177,2]
[334017773,1722681056801,-500.0,0.00019177,2]
[334017774,1722681056811,-500.0,0.00019177,2]
[334017775,1722681056821,-671.54,0.00019177,2]
[334017776,1722681056830,-1371.5,0.00019177,2]
[334017777,1722681056840,-500.0,0.00019177,2]
[334017778,1722681056849,-774.65,0.00019177,2]
[334017779,1722681056858,-608.37,0.00019177,2]
[334017780,1722681056869,-500.0,0.00019177,2]
[334017781,1722681056878,-500.0,0.00019177,2]
[334017782,1722681056888,-500.0,0.00019177,2]
[334017783,1722681056897,-500.0,0.00019177,2]
[334017784,1722681056908,-681.09,0.00019177,2]
[334017785,1722681056918,-500.0,0.00019177,2]
[334017786,1722681056927,-500.0,0.00019177,2]
[334017787,1722681056937,-519.46,0.00019177,2]
[334017788,1722681056947,-516.74104537,0.00019177,2]
[334017789,1722681056956,-500.0,0.00019177,2]
[334017790,1722681056965,-500.0,0.00019177,2]
[334017791,1722681056975,-2074.22,0.00019177,2]
[334017792,1722681056984,-500.0,0.00019177,2]
[334017793,1722681056993,-500.0,0.00019177,2]
[334017794,1722681057003,-500.0,0.00019177,2]
[334017795,1722681057012,-500.0,0.00019177,2]
[334017796,1722681057021,-500.0,0.00019177,2]
[334017797,1722681057031,-500.0,0.00019177,2]
[334017798,1722681057040,-446.91803739,0.00019177,2]
[334017799,1722681057050,-1059.18,0.00019177,2]
[334017800,1722681057059,-500.0,0.00019177,2]
[334017801,1722681057069,-807.86,0.00019177,2]
[334017802,1722681057078,-500.0,0.00019177,2]
[334017803,1722681057087,-2893.19,0.00019177,2]
[334017804,1722681057097,-500.0,0.00019177,2]
[334017805,1722681057107,-500.0,0.00019177,2]
[334017806,1722681057117,-542.83,0.00019177,2]
[334017807,1722681057126,-500.0,0.00019177,2]
[334017808,1722681057135,-1315.2,0.00019177,2]
[334017809,1722681057145,-500.0,0.00019177,2]
[334017810,1722681057154,-624.55174045,0.00019177,2]
[334017811,1722681057163,-500.0,0.00019177,2]
[334017812,1722681057172,-500.0,0.00019177,2]
[334017813,1722681057182,-1418.5,0.00019177,2]
[334017814,1722681057192,-1302.08,0.00019177,2]
[334017815,1722681057205,-500.0,0.00019177,2]
[334017816,1722681057214,-755.74,0.00019177,2]
[334017817,1722681057223,-500.0,0.00019177,2]
[334017818,1722681057233,-1249.86,0.00019177,2]
[334017819,1722681057245,-518.77,0.00019177,2]
[334017820,1722681057254,-500.0,0.00019177,2]
[334017821,1722681057264,-2189.35,0.00019177,2]
[334017822,1722681057275,-500.0,0.00019177,2]
[334017823,1722681057285,-2133.35,0.00019177,2]
[334017824,1722681057294,-500.0,0.00019177,2]
[334017825,1722681057304,-854.24,0.00019177,2]
[334017826,1722681057314,-755.99,0.00019177,2]
[334017827,1722681057324,-18828.91,0.00019177,2]
[334017828,1722681057334,-2410.19,0.00019177,2]
[334017829,1722681057343,-665.67,0.00019177,2]
[334017830,1722681057352,-2674.72,0.00019177,2]
[334017831,1722681057363,-500.0,0.00019177,2]
[334017832,1722681057373,-642.45,0.00019177,2]
[334017833,1722681057383,-1168.1,0.00019177,2]
[334017834,1722681057392,-500.0,0.00019177,2]
[334017835,1722681057402,-500.0,0.00019177,2]
[334017836,1722681057412,-681.71,0.00019177,2]
[334017837,1722681057421,-1012.83,0.00019177,2]
[334017838,1722681057431,-500.0,0.00019177,2]
[334017839,1722681057441,-500.0,0.00019177,2]
[334017840,1722681057451,-937619.88375171,0.00019178,7]
[334017841,1722681057460,-500.0,0.00019178,2]
[334017842,1722681057470,-500.0,0.00019178,2]
[334017843,1722681057479,-500.0,0.00019178,2]
[334017844,1722681057491,-500.0,0.00019178,2]
[334017845,1722681057503,-500.0,0.00019178,2]
[334017846,1722681057513,-500.0,0.00019178,2]
[334017847,1722681057523,-500.0,0.00019178,2]
[334017848,1722681057532,-457.49468692,0.00019178,2]
[334017849,1722681057541,-500.0,0.00019178,2]
[334017850,1722681057551,-645.24,0.00019178,2]
[334017851,1722681057561,-500.0,0.00019178,2]
[334017852,1722681057571,-500.0,0.00019178,2]
[334017853,1722681057582,-500.0,0.00019178,2]
[334017854,1722681057592,-500.0,0.00019178,2]
[334017855,1722681057602,-500.0,0.00019178,2]
[334017856,1722681057611,-525.86,0.00019178,2]
[334017857,1722681057623,-500.0,0.00019178,2]
[334017858,1722681057637,-500.0,0.00019178,2]
[334017859,1722681057648,-705.1,0.00019178,2]
[334017860,1722681057657,-231.07891836,0.00019178,2]
[334017861,1722681057667,-1022.36,0.00019178,2]
[334017862,1722681057677,-644.54,0.00019178,2]
[334017863,1722681057689,-500.0,0.00019178,2]
[334017864,1722681057698,-503.8,0.00019178,2]
[334017865,1722681057708,-500.0,0.00019178,2]
[334017866,1722681057717,-606.86632969,0.00019178,2]
[334017867,1722681057727,-1196.38,0.00019178,2]
[334017868,1722681057737,-500.0,0.00019178,2]
[334017869,1722681057746,-500.0,0.00019178,2]
[334017870,1722681057756,-534.01,0.00019178,2]
[334017871,1722681057766,-500.0,0.00019178,2]
[334017872,1722681057776,-500.0,0.00019178,2]
[334017873,1722681057786,-500.0,0.00019178,2]
[334017874,1722681057795,-500.0,0.00019178,2]
[334017875,1722681057806,-500.0,0.00019178,2]
[334017876,1722681057815,-555.61738929,0.00019178,2]
[334017877,1722681057824,-797.16,0.00019178,2]
[334017878,1722681057834,-150.0,0.00019208,4]
[334017879,1722681057843,-7123.63790483,0.00019257,2]
[334017880,1722681057853,-151.8896419,0.00019391,2]
[334017881,1722681057862,-1053.8,0.000194,2]
[334017882,1722681057872,-2000.0,0.000194,2]
[334017883,1722681057881,-2000.0,0.000194,2]
[334017884,1722681057890,-500.0,0.00019451,2]
[334017885,1722681057900,-498.13524813,0.00019451,2]
[334017886,1722681057910,-500.0,0.00019451,2]
[334017887,1722681057920,-150.0,0.00019451,2]
[334017888,1722681057929,-500.0,0.00019451,2]
[334017889,1722681057939,-500.0,0.00019451,2]
[334017890,1722681057949,-500.0,0.00019451,2]
[334017891,1722681057958,-615.44,0.00019451,2]
[334017892,1722681057968,-500.0,0.00019451,2]
[334017893,1722681057977,-500.0,0.00019451,2]
[334017894,1722681057986,-288.16282354,0.00019451,2]
[334017895,1722681057995,-500.0,0.00019451,2]
[334017896,1722681058005,-161.77673554,0.00019451,2]
[334017897,1722681058014,-538.32,0.00019451,2]
[334017898,1722681058023,-500.0,0.00019451,2]
[334017899,1722681058032,-500.0,0.00019451,2]
[334017900,1722681058045,-696.8,0.00019451,2]
[334017901,1722681058054,-607.26,0.00019451,2]
[334017902,1722681058063,-727.23,0.00019451,2]
[334017903,1722681058073,-1294.76,0.00019451,2]
[334017904,1722681058082,-500.0,0.00019451,2]
[334017905,1722681058092,-500.0,0.00019451,2]
[334017906,1722681058102,-500.0,0.00019451,2]
[334017907,1722681058111,-500.0,0.00019451,2]
[334017908,1722681058121,-500.0,0.00019451,2]
[334017909,1722681058131,-3092.21,0.00019451,2]
[334017910,1722681058140,-866.72,0.00019451,2]
[334017911,1722681058149,-500.0,0.00019451,2]
[334017912,1722681058159,-500.0,0.00019451,2]
[334017913,1722681058168,-500.0,0.00019451,2]
[334017914,1722681058178,-500.0,0.00019451,2]
[334017915,1722681058187,-1243.11,0.00019451,2]
[334017916,1722681058198,-500.0,0.00019451,2]
[334017917,1722681058208,-500.0,0.00019451,2]
[334017918,1722681058218,-500.0,0.00019451,2]
[334017919,1722681058228,-500.0,0.00019451,2]
[334017920,1722681058238,-671.54,0.00019451,2]
[334017921,1722681058248,-1371.5,0.00019451,2]
[334017922,1722681058257,-298.1879053,0.00019451,2]
[334017923,1722681058267,-774.65,0.00019451,2]
[334017924,1722681058278,-608.37,0.00019451,2]
[334017925,1722681058288,-500.0,0.00019451,2]
[334017926,1722681058297,-500.0,0.00019451,2]
[334017927,1722681058306,-500.0,0.00019451,2]
[334017928,1722681058316,-500.0,0.00019451,2]
[334017929,1722681058326,-681.09,0.00019451,2]
[334017930,1722681058335,-500.0,0.00019451,2]
[334017931,1722681058345,-500.0,0.00019451,2]
[334017932,1722681058354,-519.46,0.00019451,2]
[334017933,1722681058364,-500.0,0.00019451,2]
[334017934,1722681058374,-500.0,0.00019451,2]
[334017935,1722681058384,-2074.22,0.00019451,2]
[334017936,1722681058393,-500.0,0.00019451,2]
[334017937,1722681058402,-500.0,0.00019451,2]
[334017938,1722681058412,-500.0,0.00019451,2]
[334017939,1722681058421,-500.0,0.00019451,2]
[334017940,1722681058430,-500.0,0.00019451,2]
[334017941,1722681058439,-500.0,0.00019451,2]
[334017942,1722681058448,-1059.18,0.00019451,2]
[334017943,1722681058458,-500.0,0.00019451,2]
[334017944,1722681058467,-807.86,0.00019451,2]
[334017945,1722681058477,-500.0,0.00019451,2]
[334017946,1722681058487,-2893.19,0.00019451,2]
[334017947,1722681058496,-289.50344114,0.00019451,2]
[334017948,1722681058506,-500.0,0.00019451,2]
[334017949,1722681058515,-542.83,0.00019451,2]
[334017950,1722681058524,-500.0,0.00019451,2]
[334017951,1722681058533,-1315.2,0.00019451,2]
[334017952,1722681058543,-500.0,0.00019451,2]
[334017953,1722681058552,-500.0,0.00019451,2]
[334017954,1722681058561,-500.0,0.00019451,2]
[334017955,1722681058571,-1418.5,0.00019451,2]
[334017956,1722681058581,-1302.08,0.00019451,2]
[334017957,1722681058590,-500.0,0.00019451,2]
[334017958,1722681058600,-755.74,0.00019451,2]
[334017959,1722681058609,-500.0,0.00019451,2]
[334017960,1722681058620,-1249.86,0.00019451,2]
[334017961,1722681058629,-500.0,0.00019451,2]
[334017962,1722681058638,-518.77,0.00019451,2]
[334017963,1722681058647,-2189.35,0.00019451,2]
[334017964,1722681058657,-500.0,0.00019451,2]
[334017965,1722681058666,-2133.35,0.00019451,2]
[334017966,1722681058675,-500.0,0.00019451,2]
[334017967,1722681058685,-854.24,0.00019451,2]
[334017968,1722681058695,-755.99,0.00019451,2]
[334017969,1722681058704,-18828.91,0.00019451,2]
[334017970,1722681058713,-2410.19,0.00019451,2]
[334017971,1722681058723,-665.67,0.00019451,2]
[334017972,1722681058732,-2674.72,0.00019451,2]
[334017973,1722681058741,-500.0,0.00019451,2]
[334017974,1722681058751,-642.45,0.00019451,2]
[334017975,1722681058761,-1168.1,0.00019451,2]
[334017976,1722681058771,-500.0,0.00019451,2]
[334017977,1722681058780,-500.0,0.00019451,2]
[334017978,1722681058790,-681.71,0.00019451,2]
[334017979,1722681058799,-1012.83,0.00019451,2]
[334017980,1722681058808,-500.0,0.00019451,2]
[334017981,1722681058818,-500.0,0.00019451,2]
[334017982,1722681058828,-500.0,0.00019452,2]
[334017983,1722681058837,-500.0,0.00019452,2]
[334017984,1722681058847,-500.0,0.00019452,2]
[334017985,1722681058856,-466.62768763,0.00019452,2]
[334017986,1722681058865,-500.0,0.00019452,2]
[334017987,1722681058875,-500.0,0.00019452,2]
[334017988,1722681058884,-500.0,0.00019452,2]
[334017989,1722681058894,-500.0,0.00019452,2]
[334017990,1722681058903,-645.24,0.00019452,2]
[334017991,1722681058912,-500.0,0.00019452,2]
[334017992,1722681058922,-624.45961297,0.00019452,2]
[334017993,1722681058932,-500.0,0.00019452,2]
[334017994,1722681058942,-500.0,0.00019452,2]
[334017995,1722681058951,-500.0,0.00019452,2]
[334017996,1722681058960,-525.86,0.00019452,2]
[334017997,1722681058971,-556.50510607,0.00019452,2]
[334017998,1722681058980,-500.0,0.00019452,2]
[334017999,1722681058989,-705.1,0.00019452,2]
[334018000,1722681058999,-1022.36,0.00019452,2]
[334018001,1722681059009,-644.54,0.00019452,2]
[334018002,1722681059018,-500.0,0.00019452,2]
[334018003,1722681059027,-503.8,0.00019452,2]
[334018004,1722681059036,-500.0,0.00019452,2]
[334018005,1722681059045,-1196.38,0.00019452,2]
[334018006,1722681059055,-500.0,0.00019452,2]
[334018007,1722681059064,-500.0,0.00019452,2]
[334018008,1722681059074,-534.01,0.00019452,2]
[334018009,1722681059139,-500.0,0.00019452,2]
[334018010,1722681059149,-500.0,0.00019452,2]
[334018011,1722681059159,-500.0,0.00019452,2]
[334018012,1722681059169,-512.65150366,0.00019452,2]
[334018013,1722681059179,-500.0,0.00019452,2]
[334018014,1722681059189,-797.16,0.00019452,2]
[334018015,1722681059201,-751.56,0.00019452,2]
[334018016,1722681059211,-774.2,0.00019452,2]
[334018017,1722681059220,-150.0,0.00019545,4]
[334018018,1722681059229,-171.31233741,0.00019599,2]
[334018019,1722681059239,-153.3909946,0.0001966,2]
[334018020,1722681059248,-500.0,0.00019725,2]
[334018021,1722681059257,-500.0,0.00019725,2]
[334018022,1722681059266,-150.0,0.00019725,2]
[334018023,1722681059277,-500.0,0.00019725,2]
[334018024,1722681059286,-500.0,0.00019725,2]
[334018025,1722681059296,-500.0,0.00019725,2]
[334018026,1722681059305,-615.44,0.00019725,2]
[334018027,1722681059314,-500.0,0.00019725,2]
[334018028,1722681059324,-500.0,0.00019725,2]
[334018029,1722681059333,-500.0,0.00019725,2]
[334018030,1722681059342,-538.32,0.00019725,2]
[334018031,1722681059351,-500.0,0.00019725,2]
[334018032,1722681059361,-601.67382024,0.00019725,2]
[334018033,1722681059370,-696.8,0.00019725,2]
[334018034,1722681059379,-607.26,0.00019725,2]
[334018035,1722681059388,-727.23,0.00019725,2]
[334018036,1722681059397,-1294.76,0.00019725,2]
[334018037,1722681059408,-500.0,0.00019725,2]
[334018038,1722681059417,-500.0,0.00019725,2]
[334018039,1722681059427,-500.0,0.00019725,2]
[334018040,1722681059436,-500.0,0.00019725,2]
[334018041,1722681059447,-189.77122391,0.00019725,2]
[334018042,1722681059456,-3092.21,0.00019725,2]
[334018043,1722681059465,-866.72,0.00019725,2]
[334018044,1722681059474,-500.0,0.00019725,2]
[334018045,1722681059484,-500.0,0.00019725,2]
[334018046,1722681059493,-500.0,0.00019725,2]
[334018047,1722681059503,-500.0,0.00019725,2]
[334018048,1722681059512,-1243.11,0.00019725,2]
[334018049,1722681059521,-500.0,0.00019725,2]
[334018050,1722681059531,-500.0,0.00019725,2]
[334018051,1722681059540,-500.0,0.00019725,2]
[334018052,1722681059550,-500.0,0.00019725,2]
[334018053,1722681059559,-671.54,0.00019725,2]
[334018054,1722681059569,-1371.5,0.00019725,2]
[334018055,1722681059578,-774.65,0.00019725,2]
[334018056,1722681059587,-608.37,0.00019725,2]
[334018057,1722681059596,-500.0,0.00019725,2]
[334018058,1722681059606,-500.0,0.00019725,2]
[334018059,1722681059614,-500.0,0.00019725,2]
[334018060,1722681059625,-500.0,0.00019725,2]
[334018061,1722681059634,-681.09,0.00019725,2]
[334018062,1722681059643,-555.34123451,0.00019725,2]
[334018063,1722681059653,-500.0,0.00019725,2]
[334018064,1722681059662,-519.46,0.00019725,2]
[334018065,1722681059671,-500.0,0.00019725,2]
[334018066,1722681059680,-500.0,0.00019725,2]
[334018067,1722681059690,-2074.22,0.00019725,2]
[334018068,1722681059700,-500.0,0.00019725,2]
[334018069,1722681059709,-500.0,0.00019725,2]
[334018070,1722681059718,-500.0,0.00019725,2]
[334018071,1722681059727,-500.0,0.00019725,2]
[334018072,1722681059736,-500.0,0.00019725,2]
[334018073,1722681059745,-500.0,0.00019725,2]
[334018074,1722681059754,-1059.18,0.00019725,2]
[334018075,1722681059763,-500.0,0.00019725,2]
[334018076,1722681059772,-807.86,0.00019725,2]
[334018077,1722681059782,-500.0,0.00019725,2]
[334018078,1722681059792,-2893.19,0.00019725,2]
[334018079,1722681059801,-598.86653319,0.00019725,2]
[334018080,1722681059810,-542.83,0.00019725,2]
[334018081,1722681059819,-500.0,0.00019725,2]
[334018082,1722681059829,-1315.2,0.00019725,2]
[334018083,1722681059838,-500.0,0.00019725,2]
[334018084,1722681059847,-500.0,0.00019725,2]
[334018085,1722681059856,-500.0,0.00019725,2]
[334018086,1722681059865,-1418.5,0.00019725,2]
[334018087,1722681059877,-1302.08,0.00019725,2]
[334018088,1722681059886,-500.0,0.00019725,2]
[334018089,1722681059896,-755.74,0.00019725,2]
[334018090,1722681059905,-500.0,0.00019725,2]
[334018091,1722681059915,-1249.86,0.00019725,2]
[334018092,1722681059925,-500.0,0.00019725,2]
[334018093,1722681059934,-518.77,0.00019725,2]
[334018094,1722681059943,-2189.35,0.00019725,2]
[334018095,1722681059952,-500.0,0.00019725,2]
[334018096,1722681059962,-2133.35,0.00019725,2]
[334018097,1722681059971,-500.0,0.00019725,2]
[334018098,1722681059982,-854.24,0.00019725,2]
[334018099,1722681059991,-755.99,0.00019725,2]
[334018100,1722681060001,-18828.91,0.00019725,2]
[334018101,1722681060011,-2410.19,0.00019725,2]
[334018102,1722681060020,-665.67,0.00019725,2]
[334018103,1722681060029,-2674.72,0.00019725,2]
[334018104,1722681060039,-500.0,0.00019725,2]
[334018105,1722681060050,-642.45,0.00019725,2]
[334018106,1722681060060,-1168.1,0.00019725,2]
[334018107,1722681060070,-281.96251969,0.00019725,2]
[334018108,1722681060079,-500.0,0.00019725,2]
[334018109,1722681060089,-681.71,0.00019725,2]
[334018110,1722681060099,-1012.83,0.00019725,2]
[334018111,1722681060109,-500.0,0.00019725,2]
[334018112,1722681060119,-500.0,0.00019726,2]
[334018113,1722681060128,-500.0,0.00019726,2]
[334018114,1722681060137,-500.0,0.00019726,2]
[334018115,1722681060147,-500.0,0.00019726,2]
[334018116,1722681060156,-500.0,0.00019726,2]
[334018117,1722681060166,-500.0,0.00019726,2]
[334018118,1722681060175,-500.0,0.00019726,2]
[334018119,1722681060185,-645.24,0.00019726,2]
[334018120,1722681060195,-500.0,0.00019726,2]
[334018121,1722681060206,-500.0,0.00019726,2]
[334018122,1722681060216,-500.0,0.00019726,2]
[334018123,1722681060226,-459.03792279,0.00019726,2]
[334018124,1722681060235,-525.86,0.00019726,2]
[334018125,1722681060246,-500.0,0.00019726,2]
[334018126,1722681060255,-705.1,0.00019726,2]
[334018127,1722681060264,-1022.36,0.00019726,2]
[334018128,1722681060275,-644.54,0.00019726,2]
[334018129,1722681060285,-500.0,0.00019726,2]
[334018130,1722681060294,-503.8,0.00019726,2]
[334018131,1722681060304,-500.0,0.00019726,2]
[334018132,1722681060314,-1196.38,0.00019726,2]
[334018133,1722681060323,-500.0,0.00019726,2]
[334018134,1722681060333,-500.0,0.00019726,2]
[334018135,1722681060343,-534.01,0.00019726,2]
[334018136,1722681060353,-500.0,0.00019726,2]
[334018137,1722681060362,-500.0,0.00019726,2]
[334018138,1722681060372,-619.75369507,0.00019726,2]
[334018139,1722681060382,-500.0,0.00019726,2]
[334018140,1722681060391,-797.16,0.00019726,2]
[334018141,1722681060401,-151.0,0.00019795,2]
[334018142,1722681060411,-500.0,0.00019797,2]
[334018143,1722681060420,-500.0,0.00019805,2]
[334018144,1722681060430,-500.0,0.00019814,2]
[334018145,1722681060439,-500.0,0.00019823,2]
[334018146,1722681060449,-500.0,0.00019839,2]
[334018147,1722681060459,-320.0,0.00019867,2]
[334018148,1722681060469,-150.0,0.00019882,4]
[334018149,1722681060478,-211.9379,0.000199,2]
[334018150,1722681060488,-2600.0,0.000199,7]
[334018151,1722681060498,-220.9706123,0.00019994,2]
[334018152,1722681060507,-191.7747826,0.00019994,2]
[334018153,1722681060516,-14189.6686992,0.00019994,2]
[334018154,1722681060526,-500.0,0.00019999,2]
[334018155,1722681060535,-500.0,0.00019999,2]
[334018156,1722681060545,-215.99603883,0.00019999,2]
[334018157,1722681060555,-432.88083655,0.00019999,2]
[334018158,1722681060564,-500.0,0.00019999,2]
[334018159,1722681060574,-500.0,0.00019999,2]
[334018160,1722681060584,-615.44,0.00019999,2]
[334018161,1722681060594,-566.59,0.00019999,2]
[334018162,1722681060603,-500.0,0.00019999,2]
[334018163,1722681060613,-500.0,0.00019999,2]
[334018164,1722681060625,-538.32,0.00019999,2]
[334018165,1722681060634,-500.0,0.00019999,2]
[334018166,1722681060643,-696.8,0.00019999,2]
[334018167,1722681060653,-607.26,0.00019999,2]
[334018168,1722681060662,-727.23,0.00019999,2]
[334018169,1722681060672,-1294.76,0.00019999,2]
[334018170,1722681060682,-500.0,0.00019999,2]
[334018171,1722681060692,-519.82414633,0.00019999,2]
[334018172,1722681060701,-500.0,0.00019999,2]
[334018173,1722681060711,-420.84824096,0.00019999,2]
[334018174,1722681060720,-3092.21,0.00019999,2]
[334018175,1722681060730,-866.72,0.00019999,2]
[334018176,1722681060739,-500.0,0.00019999,2]
[334018177,1722681060749,-500.0,0.00019999,2]
[334018178,1722681060758,-267.39897511,0.00019999,2]
[334018179,1722681060768,-500.0,0.00019999,2]
[334018180,1722681060777,-1243.11,0.00019999,2]
[334018181,1722681060787,-500.0,0.00019999,2]
[334018182,1722681060796,-500.0,0.00019999,2]
[334018183,1722681060805,-500.0,0.00019999,2]
[334018184,1722681060816,-500.0,0.00019999,2]
[334018185,1722681060825,-671.54,0.00019999,2]
[334018186,1722681060834,-1371.5,0.00019999,2]
[334018187,1722681060844,-774.65,0.00019999,2]
[334018188,1722681060854,-608.37,0.00019999,2]
[334018189,1722681060863,-500.0,0.00019999,2]
[334018190,1722681060875,-500.0,0.00019999,2]
[334018191,1722681060890,-500.0,0.00019999,2]
[334018192,1722681060900,-500.0,0.00019999,2]
[334018193,1722681060909,-681.09,0.00019999,2]
[334018194,1722681060919,-500.0,0.00019999,2]
[334018195,1722681060928,-519.46,0.00019999,2]
[334018196,1722681060937,-500.0,0.00019999,2]
[334018197,1722681060946,-500.0,0.00019999,2]
[334018198,1722681060956,-2074.22,0.00019999,2]
[334018199,1722681060966,-500.0,0.00019999,2]
[334018200,1722681060975,-500.0,0.00019999,2]
[334018201,1722681060985,-500.0,0.00019999,2]
[334018202,1722681060994,-528.67499521,0.00019999,2]
[334018203,1722681061004,-500.0,0.00019999,2]
[334018204,1722681061013,-500.0,0.00019999,2]
[334018205,1722681061023,-1059.18,0.00019999,2]
[334018206,1722681061032,-500.0,0.00019999,2]
[334018207,1722681061042,-807.86,0.00019999,2]
[334018208,1722681061052,-500.0,0.00019999,2]
[334018209,1722681061063,-2893.19,0.00019999,2]
[334018210,1722681061072,-542.83,0.00019999,2]
[334018211,1722681061082,-500.0,0.00019999,2]
[334018212,1722681061091,-1315.2,0.00019999,2]
[334018213,1722681061100,-500.0,0.00019999,2]
[334018214,1722681061110,-500.0,0.00019999,2]
[334018215,1722681061120,-500.0,0.00019999,2]
[334018216,1722681061130,-1418.5,0.00019999,2]
[334018217,1722681061139,-1302.08,0.00019999,2]
[334018218,1722681061149,-755.74,0.00019999,2]
[334018219,1722681061158,-500.0,0.00019999,2]
[334018220,1722681061168,-542.2657349,0.00019999,2]